Cogmind - Beta 16 @@@ ROGUE MODE // 2025.11.06 @ 01:22:31 Player: Naughtyusername Result: Destroyed by D-53 Grenadier with Mini Grenade Launcher Performance ------------- Evolutions (0) 0 Regions Visited (2) 400 Robots Destroyed (25) 125 Value Destroyed (436) 436 Prototype IDs (4) 80 Alien Tech Used (0) 0 Bonus (0) 0 TOTAL SCORE: 1041 Bonus ------- None Cogmind --------- Core Integrity 0/250 Matter 284/300 Energy 99/100 System Corruption 0% Temperature Cool (0) Movement Treading (320) Ox2 Location -10/Mines Parts ------- > --- POWER (1) -------- (None) > --- PROPULSION (2) --- Light Treads > --- UTILITY (2) ------ High-capacity Storage Unit Targeting Computer > --- WEAPON (2) ------- Light Assault Rifle > --- INVENTORY (20) --- Light Nuclear Core Heat Sink Large Storage Unit Machine Analyzer Seismic Detector Targeting Computer Utility Shielding Hacking Suite Decoy Drone Bay Grenade Launcher Mining Laser Peak State ------------ > --- POWER ------------ Ion Engine > --- PROPULSION ------- Light Treads Light Treads > --- UTILITY ---------- High-capacity Storage Unit Targeting Computer > --- WEAPON ----------- Light Cannon Light Cannon > --- INVENTORY -------- Light Nuclear Core Heat Sink Large Storage Unit Machine Analyzer Seismic Detector Targeting Computer Utility Shielding Hacking Suite Decoy Drone Bay Light Assault Rifle Grenade Launcher Mining Laser [Rating: 10] Favorites ----------- Power Ion Engine Engine Ion Engine Propulsion Light Treads Treads Light Treads Utility High-capacity Storage Unit Device Seismic Detector Storage High-capacity Storage Unit Processor Targeting Computer Weapon Light Cannon Energy Gun Small Laser Ballistic Gun Light Assault Rifle Ballistic Cannon Light Cannon Launcher Grenade Launcher Build | -11 -10 -10 ------- Run | Yrd Mat Min Slots Evolved . | . . . Power . | . . . Propulsion . | . . . Utility . | . . . Weapon . | . . . Parts Attached 17 | 9 7 1 Power 2 | 1 1 . Engine 2 | 1 1 . Core . | . . . Reactor . | . . . Propulsion 2 | 2 . . Treads 2 | 2 . . Leg . | . . . Wheel . | . . . Hover . | . . . Flight . | . . . Utility 6 | 3 3 . Device 2 | 2 . . Storage 3 | 1 2 . Processor 1 | . 1 . Hackware . | . . . Protection . | . . . Artifact . | . . . Weapon 7 | 3 3 1 Energy Gun 2 | 2 . . Energy Cannon . | . . . Ballistic Gun 2 | 1 . 1 Ballistic Cannon 2 | . 2 . Launcher 1 | . 1 . Special Weapon . | . . . Impact Weapon . | . . . Slashing Weapon . | . . . Piercing Weapon . | . . . Special Melee Weapon . | . . . Unidentified Prototypes . | . . . Parts Lost 6 | . 2 4 Power 2 | . 1 1 Propulsion 1 | . . 1 Utility . | . . . Weapon 3 | . 1 2 Highest Loss Streak 4 | . 2 4 To Critical Strikes . | . . . Average Backups 6 | . 5 10 Power . | . . 1 Propulsion . | . . . Utility 2 | . 1 6 Weapon 2 | . 3 2 Tool/Special . | . . . Unused Backups 7 | . . 7 Power 1 | . . 1 Propulsion . | . . . Utility 5 | . . 5 Weapon 1 | . . 1 Tool/Special . | . . . Average Slot Usage (%) 95 | . 92 99 Engine 13 | . 13 13 Treads 27 | . 27 28 Device 2 | . 4 . Storage 14 | . 14 14 Processor 6 | . 2 14 Energy Gun 3 | . 5 . Ballistic Gun 3 | . 5 . Ballistic Cannon 20 | . 16 27 Peak Build Rating 10 | 9 8 10 Average Rating 6 | 5 6 8 On Entrance 5 | . 7 8 Avg Prop Armor Cover (%) . | . . . Naked Turns . | . . . Heaviest Build 71 | 11 71 51 Greatest Support 40 | 40 40 40 Greatest Overweight (x) 1 | . 1 1 Average Overweight (x) . | . . 1 Largest Inventory Capacity 20 | 8 20 20 Average Capacity 16 | 7 15 20 Most Carried 13 | 3 9 13 Average Carried 6 | . 5 10 Final Capacity 20 | 8 20 20 Final Carried 12 | 1 9 12 Class Distribution -------------------- 100% | Mutant Dominant Class ---------------- Mutant | -10/Materials Mutant | -10/Mines Resources | -11 -10 -10 ----------- Run | Yrd Mat Min Matter Collected 649 | 304 195 150 Remotely . | . . . Salvage Created 624 | 193 403 28 Parts 43 | 12 24 7 Haulers Intercepted 1 | . 1 . Recyclers Shooed 1 | . 1 . Parts Field Recycled . | . . . Retrieved Matter . | . . . Parts Self-Destructed . | . . . Prevented . | . . . Parts Restored . | . . . Kills | -11 -10 -10 ------- Run | Yrd Mat Min Combat Hostiles Destroyed 17 | . 14 3 Guns 4 | . 4 . Cannons 7 | . 4 3 AOE 6 | . 6 . Classes Destroyed 6 | 3 3 . Worker 2 | 2 . . Tunneler 4 | 4 . . Hauler 1 | . 1 . Recycler 1 | 1 . . Swarmer 9 | . 6 3 Grunt 8 | . 8 . Best Kill Streak 4 | 4 3 3 Combat Bots Only 3 | . 3 3 Max Kills in Single Turn 3 | 1 3 2 Gunslinging . | . . . Exploded 3 | . 3 . Melee . | . . . Uniques/NPCs Destroyed . | . . . Combat | -11 -10 -10 -------- Run | Yrd Mat Min Hostile Shots Fired 71 | . 57 14 Missed 20 | . 17 3 Hits 51 | . 40 11 Projectile 51 | . 40 11 AOE 13 | . . 13 Damage Taken 979 | . 496 483 Core 262 | . 63 199 Absorbed by Shields . | . . . Core Remaining (%) 100 | 100 . . Volleys Fired 80 | 19 55 6 Largest 2 | 2 2 2 Hottest 70 | 60 70 60 Shots Fired 155 | 38 105 12 Gun 117 | 38 77 2 Cannon 34 | . 24 10 Launcher 4 | . 4 . Special . | . . . Kinetic 93 | 19 62 12 Thermal 58 | 19 39 . Explosive 4 | . 4 . Electromagnetic . | . . . Robot Hit Streak 11 | 9 11 5 Robot Miss Streak 3 | 2 3 3 Penetration Max . | . . . Secondary Targets 1 | . 1 . Max Gunslinging Chain 1 | . 1 . Shots Hit Robots 109 | 28 73 8 Core Hits 41 | 13 25 3 Critical Kills . | . . . Critical Parts Destroyed . | . . . Critical Strikes 1 | . 1 . Blast 1 | . 1 . Melee Attacks . | . . . Impact . | . . . Slashing . | . . . Piercing . | . . . Sneak Attacks . | . . . Combat Hostiles . | . . . Follow-up Attacks . | . . . Damage Inflicted 1506 | 269 1097 140 Guns 827 | 269 558 . Cannons 370 | . 235 135 Explosions 297 | . 297 . Melee . | . . . Ramming 12 | . 7 5 Kinetic 759 | 118 506 135 Thermal 438 | 151 287 . Explosive 297 | . 297 . Electromagnetic . | . . . Impact . | . . . Slashing . | . . . Piercing . | . . . Highest Corruption . | . . . Average Corruption . | . . . Corruption Purged . | . . . Corruption Blocked . | . . . Overload Shots . | . . . Overflow Damage 29 | . 29 . Projectiles . | . . . Explosions 29 | . 29 . Melee . | . . . Knockbacks 5 | . 1 4 Impact . | . . . Kinetic 5 | . 1 4 Secondary . | . . . Self-Inflicted Damage . | . . . Shots . | . . . Rammed 3 | . 2 1 Targets Rammed 3 | . 2 1 Kicked . | . . . Crushed . | . . . Highest Temperature 132 | 40 132 . Average Temperature 41 | 19 49 . Received Heat Transfer 243 | . 243 . Siege Activations . | . . . Martial Activations . | . . . Shielding Activations . | . . . Robots Disrupted . | . . . Combat Hostiles . | . . . Robots Corrupted . | . . . Combat Hostiles . | . . . Parts Fried . | . . . Impact Corruptions . | . . . Robots Melted . | . . . Combat Hostiles . | . . . Parts Melted 1 | . 1 . Heat Transferred 1000 | 350 650 . Parts Sabotaged . | . . . Parts Stolen . | . . . Parts Stripped . | . . . Power Chain Reactions . | . . . Alert | -11 -10 -10 ------- Run | Yrd Mat Min Maximum Alert Level 1 | . 1 . Low Security (%) 92 | 100 86 100 Level 1 7 | . 13 . Level 2 . | . . . Level 3 . | . . . Level 4 . | . . . Level 5 . | . . . High Security . | . . . Max Security . | . . . Peak Influence 249 | 10 249 69 Initial 49 | . . 49 Average 57 | 1 91 12 Influence Increases 554 | 35 449 70 Destroy 0b10 Robot/C 340 | . 280 60 Destroy 0b10 Robot/NC 40 | 35 5 . Destroy Leader 72 | . 62 10 Successful Hack 7 | . 7 . Select Force Hacks 60 | . 60 . Disable Machine 15 | . 15 . Destroy Structure 20 | . 20 . Influence Decreases 554 | 35 322 197 Entered New Map 78 | . . 78 Time Decay 466 | 35 312 119 Lost Part 10 | . 10 . Squads Dispatched 3 | . 2 1 Investigation 3 | . 2 1 Extermination . | . . . Reinforcement . | . . . Assault . | . . . Garrison . | . . . Intercept . | . . . Searches Triggered . | . . . Construction Impeded . | . . . Haulers Reinforced . | . . . Active Scanning Responses . | . . . Cargo Convoy Interrupts . | . . . Stealth | -11 -10 -10 --------- Run | Yrd Mat Min Distress Signals 1 | . 1 . Communications Jammed . | . . . Distress Signals . | . . . Times Spotted 25 | . 20 5 Peak Tracking Total 5 | . 5 3 Tactical Retreats . | . . . Traps | -11 -10 -10 ------- Run | Yrd Mat Min Traps Triggered 1 | . 1 . Indirectly . | . . . Trap Hack Attempts . | . . . Triggered . | . . . Disarmed . | . . . Reprogrammed . | . . . Reused . | . . . Traps Extracted . | . . . Installed . | . . . Triggered . | . . . Machines | -11 -10 -10 ---------- Run | Yrd Mat Min Machines Disabled 1 | . 1 . Max in Single Turn 1 | . 1 . Machines Repaired . | . . . Machines Dismantled . | . . . Machines Sabotaged . | . . . Overloaded Fab Kills . | . . . Hacking | -11 -10 -10 --------- Run | Yrd Mat Min Machines Accessed 11 | . 9 2 Terminals 7 | . 7 . Fabricators . | . . . Repair Stations . | . . . Recycling Units 2 | . 2 . Scanalyzers . | . . . Garrison Access . | . . . Total Hacks 27 | . 25 2 Successful 19 | . 17 2 Failed 8 | . 8 . Catastrophic 1 | . 1 . Database Lockouts . | . . . Manual 19 | . 19 . Terminals 20 | . 20 . Fabricators . | . . . Repair Stations . | . . . Recycling Units 5 | . 5 . Scanalyzers . | . . . Garrison Access . | . . . Terminal Hacks 9 | . 7 2 Robot Analysis 4 | . 4 . Prototype ID Bank 3 | . 3 . Open Door 2 | . . 2 Fabricator Hacks . | . . . Repair Station Hacks . | . . . Recycling Unit Hacks . | . . . Scanalyzer . | . . . Garrison Access Hacks . | . . . Unauthorized Hacks 10 | . 10 . Terminals 8 | . 8 . Assimilate 1 | . 1 . Botnet 2 | . 2 . Skim 5 | . 5 . Fabricators . | . . . Repair Stations . | . . . Recycling Units 2 | . 2 . Tunnel 2 | . 2 . Scanalyzers . | . . . Garrison Access . | . . . Data Cores Recovered . | . . . Used . | . . . Hacking Detections 8 | . 8 . Full Trace Events . | . . . Feedback Events . | . . . Feedback Blocked . | . . . Robot Schematics Acquired . | . . . Robots Built . | . . . Authchips . | . . . Time . | . . . Total Robot Build Rating . | . . . Part Schematics Acquired . | . . . Parts Built . | . . . Authchips . | . . . Time . | . . . Total Part Build Rating . | . . . Part Studies Acquired . | . . . Parts Repaired . | . . . Time . | . . . Parts Recycled . | . . . Recycled Matter . | . . . Retrieved Matter . | . . . Retrieved Components . | . . . Parts Scanalyzed . | . . . Part Schematics Acquired . | . . . Parts Damaged . | . . . Bothacking | -11 -10 -10 ------------ Run | Yrd Mat Min Used RIF Installer . | . . . Robots Hacked . | . . . Non-combat . | . . . Combat . | . . . Robot Hacks Applied . | . . . Relay Couplers Released . | . . . Fabnet Peak Effective % . | . . . Robots Rewired . | . . . Allies Hacked . | . . . Hacks Repelled . | . . . Allies | -11 -10 -10 -------- Run | Yrd Mat Min Total Allies 1 | . 1 . Largest Group 1 | . 1 1 Highest-Rated Group 10 | . 10 10 Highest-Rated Ally 10 | . 10 10 Total Orders 1 | . . 1 STAY 1 | . . 1 Ally Attacks . | . . . Total Damage . | . . . Kills . | . . . Allies Corrupted . | . . . Allies Melted . | . . . Intel | -11 -10 -10 ------- Run | Yrd Mat Min Active Infowar (turns) 423 | 32 391 . Terrain 5 | 5 . . Seismic 418 | 27 391 . Robot Analysis Total 4 | . 4 . Derelict Logs Recovered 1 | . . 1 Drone Launches . | . . . Drone Recoveries . | . . . Exploration | -11 -10 -10 ------------- Run | Yrd Mat Min Turns Passed 2112 | 238 1235 639 Spaces Moved 861 | 107 526 228 Core 2 | 2 . . Treads 859 | 105 526 228 Legs . | . . . Wheels . | . . . Hover . | . . . Flight . | . . . Fastest Speed 50 | 50 160 240 Average Speed 202 | 157 194 240 Slowest Speed 240 | 160 240 240 Overloaded Moves . | . . . Propulsion Burnouts . | . . . Robots Hopped . | . . . Potential Cave-ins . | . . . Cave-ins Triggered . | . . . Exploration Rate (%) 50 | 8 93 49 Regions Visited 2 Branch Regions 1 Pre-discovered Areas 3 | . 2 1 Known Exits Taken 1 | . 1 . Unknown Exits Taken 1 | 1 . . Scrap Searched 1 | . . 1 Spaces Dug . | . . . Terrain Destroyed 36 | . 36 . Melee . | . . . Projectile . | . . . AOE 36 | . 36 . Terrain Rammed . | . . . Walls Destroyed . | . . . Machines Disabled . | . . . Actions | -11 -10 -10 --------- Run | Yrd Mat Min Total 1083 | 139 636 308 Wait 91 | . 22 69 Move 859 | 106 525 228 Hop . | . . . Pick Up 13 | 1 9 3 Fast Attach 14 | 8 6 . Attach 6 | 1 4 1 Detach 7 | 2 5 . Swap 7 | 1 6 . Drop 3 | 1 2 . Fire 80 | 19 55 6 Melee . | . . . Ram . | . . . Kick . | . . . Crush 3 | . 2 1 Escape Stasis . | . . . Rewire . | . . . Trap . | . . . Miscellaneous . | . . . Route ------- -11/Scrapyard -10/Materials (discovered 6 exits: *Mat x3 / *Min x2 / Sub) -10/Mines (discovered 2 exits: *Mat x2) History --------- Turn | Location | Event 15 | -11/Scrapyard | Discovered new exit (range 15) 239 | -11/Scrapyard | Entered Materials 316 | -10/Materials | Build established: Mutant 351 | -10/Materials | Discovered new exit (range 16) 435 | -10/Materials | Discovered new exit (range 8) 534 | -10/Materials | Discovered new exit (range 6) 782 | -10/Materials | Discovered new exit (range 15) 943 | -10/Materials | Learned 2 Storage zone layouts 977 | -10/Materials | Learned location of 1 exit from Recycling 995 | -10/Materials | Discovered new exit (range 6) 1015 | -10/Materials | Learned location of 1 exit from Storage 1021 | -10/Materials | Loaded intel: 1 repair station location 1040 | -10/Materials | Identified exit to Subcaves 1065 | -10/Materials | Learned Storage trap positions 1102 | -10/Materials | Identified exit to Materials 1102 | -10/Materials | Identified exit to Mines 1474 | -10/Materials | Entered Mines 1474 | -10/Mines | Accompanied by 1 ally 1621 | -10/Mines | Met a Derelict shopkeep closing up shop 1907 | -10/Mines | Discovered exit to Materials (range 8) 1933 | -10/Mines | Discovered exit to Materials (range 7) 2065 | -10/Mines | Learned location of Recycling (-8) 2066 | -10/Mines | Assembled infested the area 2085 | -10/Mines | Found the Drone Emporium 2096 | -10/Mines | Found Prototype Device 2104 | -10/Mines | Core integrity fell below 50% 2110 | -10/Mines | Core integrity fell below 20% 2113 | -10/Mines | Destroyed by D-53 Grenadier with Mini Grenade Launcher Last Messages --------------- Heard you outside and thought you were from the Merchants Guild. I haven't even officially opened my Drone Emporium yet but am totally ready to tell them where they can shove that C&D." 02087_ H9-J2G(g): "I'm a fan of the free market. Free drones for all! No strings attached!" 02096_ Acquired Prototype Device. 02100_ Machine disabled. 02101_ H9-J2G(g) destroyed. 02101_ SHOP.Sys disabled. 02102_ D-53 Grenadier knocked back. 02103_ Ion Engine destroyed. 02106_ The unstable cave ceiling collapses. 02107_ Lgt. Cannon destroyed. 02109_ The unstable cave ceiling collapses. 02109_ D-53 Grenadier knocked back. 02110_ Lgt. Treads destroyed. 02112_ D-53 Grenadier knocked back. 02113_ Lgt. Cannon destroyed. Map ----- +----------------------------------------------------+ | ????????????????????# ! ##??????#####??????? | | ????????????????????# ###??????????????????? | | ????????????????????# #????????????????????? | | ????????????????????## ####?????????????????? | | ????????????????###### ##????????????????? | | ????????????????# |% #????????????????? | | ????????????????# !! ! #????????????????? | | ????????????????# #### ##???????????????? | | ????????????##### #??#### ##??????????????? | | ???????????## ## ####??## ##?????????????? | | ???###?##### #???# #?????????????? | | ??## ## ## #???# #?????????????? | | ??# ##### #???# ##?????????????? | | ??# #???# #???## #??????????????? | | ??# ##???# #????## #??????????????? | | ??## #####?# ##????# #??????????????? | | ???## #### ### #????# #??????????????? | | ????## #### #????# #??????????????? | | ?????## ### ##????# ##### #????????? | | ??????# ##?????# #????????? | | ??????# < ######### #######????????? | | ??????# ### ## #??????????????? | | ??????## ## dd #??????????????? | | ???????# ## # ##?????????????? | | ???????# ## # % #?????????????? | | ????#### ## # @ #?????????????? | | ???## # ## # #?????????????? | | ??## # # #?????????????? | | ??# # # #????????????? | | ??# ### ## #????????????? | | ??# ## # ##????????????? | | ??# < ####### ####?????????????? | | ??# ### #?????? ###????????????????? | | ??# #?## #?????? ##??????????????????? | | ??# #??## ##???????#???????????????????? | | ??## ##???# ##????????????????????????????? | | ???###?????## ##?????????????????????????????? | | ????????????####??????????????????????????????? | | ??????????????????????????????????????????????? | | ??????????????????????????????????????????????? | | | | | | | | | | | | | | | | | | | | | +----------------------------------------------------+ Best States ------------- Heat Dissipation 25 Energy Generation 10 Energy Capacity 250 Matter Stores 300 Matter Capacity 300 Sight Range 16 Terrain Scan Density 10 Evasion (%) 40 Targeting Accuracy 5 Recoil Reduction 2 Item Schematics ----------------- None Robot Schematics ------------------ None Fabricated ------------ Nothing Repaired ---------- Nothing Studied --------- None Alien Tech Used ----------------- None Achievements -------------- None Challenges ------------ None Game ------ Seed MomentumSwordCanceller Manual? 0 Play Time 00:08:12 Cumulative 516.4 hours Start 2025.11.06 @ 01:15:21 End 2025.11.06 @ 01:22:31 Sessions 1 Manual Loads 0 Difficulty Rogue Special Mode None Game No. 282 Rogue 282 Adventurer 0 Explorer 0 Win Type - Total 22 Types 13/1/5/1/0/0/0/1/1/0 Lore% 94 Gallery% 88 Achievement% 79 Wizard Run 0 Options --------- Layout 2 ASCII 0 Keyboard 1 Movement Vi Keybinds 0 Fullscreen 1 Font 28/Terminus Map View 50x52 Zoom Use 0% Tactical HUD 1 Map Filters NONE Filters NONE Steam 1 RUN: b8cfe760-6489-4b95-b904-43edc788a900